[Event "EYTCC Girls U18 2022"]
[Site "Thessaloniki"]
[Date "2022.07.17"]
[Round "6.12"]
[White "Kapia, Aggeliki"]
[Black "Pert, Nina"]
[Result "0-1"]
[ECO "A84"]
[WhiteElo "1230"]
[BlackElo "1703"]
[Annotator "NA COMBH"]
[PlyCount "96"]
[EventDate "2022.07.12"]
[EventType "team-tourn"]
[EventCountry "GRE"]
[SourceTitle "playchess.com"]
[Source "ChessBase"]
[SourceQuality "1"]
[WhiteTeam "Greece"]
[BlackTeam "England"]
[WhiteTeamCountry "GRE"]
[BlackTeamCountry "ENG"]
[TimeControl "40/5400+30:1800+30"]

1. d4 {[%emt 0:00:02]} e6 {[%emt 0:00:11]} 2. c4 {[%emt 0:00:09]} f5 {[%emt 0:00:06]} 3. Nc3 {[%emt 0:01:06]} Nf6 {[%emt 0:00:11]} 4. g3 {[%emt 0:00:18]} Bb4 {[%emt 0:00:39]} 5. Bg2 {[%emt 0:03:31]} O-O {[%emt 0:00:50]} 6. Nf3 {[%emt 0:01:01]} d6 {[%emt 0:01:13]} 7. O-O {[%emt 0:02:18]} Bxc3 {[%emt 0:15:39]} 8. bxc3 {[%emt 0:05:31]} Nc6 {[%emt 0:04:24]} 9. Bg5 Qe8 {[%emt 0:00:12]} 10. Bxf6 {[%emt 0:03:10]} Rxf6 11. Re1 e5 {[%emt 0:02:17]} 12. e4 {[%emt 0:17:05]} f4 {[%emt 0:04:21]} 13. Qd2 {[%emt 0:21:06]} Bg4 {[%emt 0:02:10]} 14. Nh4 {[%emt 0:08:12]} g5 {[%emt 0:09:48]} 15. Nf5 {[%emt 0:07:44]} Qh5 {[%emt 0:02:53]} 16. h4 {[%emt 0:08:12]} Bxf5 {[%emt 0:07:25]} 17. exf5 {[%emt 0:05:10]} gxh4 {[%emt 0:01:48]} 18. Bd5+ {[%emt 0:03:24]} Kh8 {[%emt 0:01:51]} 19. gxf4 {[%emt 0:01:10]} Qxf5 {[%emt 0:07:43]} 20. fxe5 {[%emt 0:02:02]} dxe5 {[%emt 0:09:35]} 21. Bxc6 {[%emt 0:04:54]} bxc6 {[%emt 0:00:51]} 22. dxe5 {[%emt 0:02:30]} Rg8+ {[%emt 0:01:12]} 23. Kh2 {[%emt 0:01:01]} Rfg6 {[%emt 0:07:30]} 24. Rg1 Qxe5+ {[%emt 0:00:35]} 25. f4 {[%emt 0:01:13]} Qf6 {[%emt 0:00:36]} 26. Rxg6 {[%emt 0:00:21]} hxg6 {[%emt 0:01:08]} 27. Qe3 {[%emt 0:01:44]} Rb8 {[%emt 0:01:53]} 28. Qe5 {[%emt 0:00:58]} Rb2+ {[%emt 0:00:39]} 29. Kh3 {[%emt 0:00:23]} Qxe5 {[%emt 0:00:11]} 30. fxe5 Re2 {[%emt 0:00:11]} 31. Kxh4 {[%emt 0:00:33]} Rxe5 {[%emt 0:00:44]} 32. Rd1 {[%emt 0:00:42]} Re7 {[%emt 0:02:24]} 33. Kg5 {[%emt 0:00:28]} Kg7 {[%emt 0:00:17]} 34. Rd2 {[%emt 0:00:48]} Re5+ {[%emt 0:00:46]} 35. Kf4 {[%emt 0:00:14]} Kf6 {[%emt 0:00:11]} 36. Rd7 {[%emt 0:00:21]} Rc5 {[%emt 0:01:41]} 37. Rd4 {[%emt 0:01:04]} Ra5 {[%emt 0:00:34]} 38. Rd7 {[%emt 0:00:14]} Ra4 {[%emt 0:00:09]} 39. Rxc7 {[%emt 0:00:25]} Rxc4+ {[%emt 0:00:06]} 40. Ke3 {[%emt 0:00:00]} Rxc3+ {[%emt 0:00:00]} 41. Kd4 {[%emt 0:01:10]} Ra3 {[%emt 0:00:38]} 42. Rxc6+ {[%emt 0:00:25]} Kg5 {[%emt 0:00:25]} 43. Rc2 {[%emt 0:00:14]} Kh4 {[%emt 0:00:32]} 44. Ke4 {[%emt 0:01:49]} g5 {[%emt 0:01:18]} 45. Kf5 {[%emt 0:01:06]} Ra4 {[%emt 0:01:20]} 46. Rb2 {[%emt 0:03:24]} g4 {[%emt 0:00:21]} 47. Rc2 {[%emt 0:01:37]} Kh3 {[%emt 0:00:14]} 48. Rc3+ {[%emt 0:00:10]} g3 {[%emt 0:00:05]} 0-1

[Event "EYTCC Girls U18 2022"]
[Site "Thessaloniki"]
[Date "2022.07.18"]
[Round "7.1"]
[White "Lehaci, Miruna-Daria"]
[Black "Rozmanec, Pia"]
[Result "1-0"]
[ECO "B54"]
[WhiteElo "2193"]
[BlackElo "1642"]
[Annotator "TA"]
[PlyCount "68"]
[EventDate "2022.07.12"]
[EventType "team-tourn"]
[EventCountry "GRE"]
[SourceTitle "playchess.com"]
[Source "ChessBase"]
[SourceQuality "1"]
[WhiteTeam "Romania"]
[BlackTeam "Slovenia"]
[WhiteTeamCountry "ROU"]
[BlackTeamCountry "SLO"]
[TimeControl "40/5400+30:1800+30"]

{[%evp 18,68,69,65,73,76,80,79,90,74,89,73,65,51,101,98,97,106,131,150,147,139,338,334,328,285,285,285,285,283,293,288,289,266,324,291,303,296,312,305,497,496,494,493,482,480,498,493,535,531,679,654,5431]} 1. e4 {[%emt 0:00:03]} c5 {[%emt 0:00:04]} 2. Nf3 {[%emt 0:00:08]} d6 {[%emt 0:00:06]} 3. d4 {[%emt 0:00:04]} cxd4 {[%emt 0:00:06]} 4. Nxd4 {[%emt 0:00:03]} Nf6 {[%emt 0:00:04]} 5. f3 {[%emt 0:00:04]} a6 {[%emt 0:02:27]} 6. c4 {[%emt 0:00:11]} g6 {[%emt 0:09:31]} 7. Be3 {[%emt 0:02:08]} Bg7 {[%emt 0:00:46]} 8. Be2 {[%emt 0:00:18]} b6 {[%emt 0:05:40]} 9. O-O {[%emt 0:01:26]} O-O {[%emt 0:00:24]} 10. Nc3 {[%emt 0:00:43]} Bb7 {[%emt 0:00:42] A31: Symmetrical English: 2 Nf3 Nf6 3 d4.} 11. Qd2 {[%emt 0:01:09]} Qc7 {[%emt 0:01:14] [#]} 12. Nd5 $146 {[%emt 0:03:08]} ({Predecessor:} 12. Rac1 e6 13. Rfd1 Rd8 14. Nb3 Ne8 15. Bd4 Bxd4+ 16. Qxd4 Nd7 17. Kh1 Rac8 18. Qe3 {1-0 (31) Madl,I (2385)-Behl,T (2135) Budapest 1996}) 12... Qd8 {[%emt 0:06:22] White is better.} 13. Rfd1 {[%emt 0:09:42] White is much more active.} Nbd7 {[%emt 0:02:17]} 14. Bf1 {[%emt 0:02:00]} e6 {[%emt 0:06:49]} 15. Nc3 {[%emt 0:02:05]} d5 {[%emt 0:05:24]} ({Better is} 15... Re8 $14) 16. cxd5 $16 {[%emt 0:04:22]} exd5 {[%emt 0:00:06]} 17. exd5 {[%emt 0:01:03]} Nxd5 {[%emt 0:01:05]} 18. Nxd5 {[%emt 0:01:38]} Bxd5 {[%emt 0:00:12]} 19. Nf5 {[%emt 0:02:28] Inhibits Qe7.} Be6 $2 {[%emt 0:18:34] Loses the game.} (19... gxf5 $16 20. Qxd5 Re8) 20. Nxg7 $18 {[%emt 0:01:09]} Kxg7 {[%emt 0:00:05]} 21. Bh6+ {[%emt 0:01:54] A strong pair of Bishops.} Kg8 {[%emt 0:00:05]} 22. Qc3 {[%emt 0:03:06][%csl Gh6][%cal Rc3g7] [#]} Qf6 {[%emt 0:01:02] Prevents Qg7+.} 23. Qxf6 {[%emt 0:00:19]} ({But not} 23. Bxf8 $6 Qxc3 24. bxc3 Kxf8 $18) 23... Nxf6 {[%emt 0:00:05]} 24. Bxf8 {[%emt 0:00:05]} Kxf8 {[%emt 0:00:05]} 25. a3 {[%emt 0:02:10]} Nd5 {[%emt 0:02:53]} 26. Kf2 {[%emt 0:01:18]} b5 {[%emt 0:00:39]} 27. Rac1 {[%emt 0:01:01]} Ke7 {[%emt 0:01:13]} 28. Rc5 {[%emt 0:03:18]} Ra7 $2 {[%emt 0:03:02] [#]} (28... Nf6 {might work better.} 29. Rc7+ Kf8) 29. Rcxd5 {[%emt 0:00:39] White is clearly winning.} Bxd5 {[%emt 0:00:06]} 30. Rxd5 {[%emt 0:00:04] KRB-KR} Rc7 {[%emt 0:00:13]} 31. Rd2 {[%emt 0:00:21] Prevents Rc2.} h5 {[%emt 0:03:09]} 32. g3 {[%emt 0:00:42]} Ke6 {[%emt 0:01:09]} 33. Bd3 {[%emt 0:00:54]} f5 {[%emt 0:00:52]} 34. Rc2 {[%emt 0:00:20]} Kd5 {Weighted Error Value: White=0.07 (flawless) /Black=0.41} 1-0

[Event "EYTCC Girls U18 2022"]
[Site "Thessaloniki"]
[Date "2022.07.18"]
[Round "7.2"]
[White "Guid, Taja"]
[Black "Ciolacu, Alessia-Mihaela"]
[Result "0-1"]
[ECO "B23"]
[WhiteElo "1479"]
[BlackElo "2163"]
[Annotator "TA"]
[PlyCount "60"]
[EventDate "2022.07.12"]
[EventType "team-tourn"]
[EventCountry "GRE"]
[SourceTitle "playchess.com"]
[Source "ChessBase"]
[SourceQuality "1"]
[WhiteTeam "Slovenia"]
[BlackTeam "Romania"]
[WhiteTeamCountry "SLO"]
[BlackTeamCountry "ROU"]
[TimeControl "40/5400+30:1800+30"]

{[%evp 9,59,0,27,27,33,30,25,15,41,40,40,44,50,44,47,37,44,13,131,45,44,59,72,0,31,-28,-16,-85,-85,-203,-224,-216,-213,-385,-430,-761,-763,-744,-726,-1670,-1594,-29994,-853,-29991,-29988,-29988,-2501,-2118,-2000,-29998,-29999,-29999]} 1. e4 {[%emt 0:00:01]} c5 {[%emt 0:00:05]} 2. Nc3 {[%emt 0:00:35]} d6 {[%emt 0:00:05]} 3. d4 {[%emt 0:03:12]} cxd4 {[%emt 0:00:31]} 4. Qxd4 {[%emt 0:00:10]} Nc6 {[%emt 0:00:27]} 5. Qd2 {[%emt 0:00:46]} g6 {[%emt 0:00:59]} 6. b3 {[%emt 0:00:29] B23: Closed Sicilian: Lines without g3.} Bg7 {[%emt 0:01:06]} 7. Bb2 {[%emt 0:00:13]} Nf6 {[%emt 0:01:22][%cal Of6e4] White must now prevent ...Nxe4!} 8. O-O-O {[%emt 0:01:24] White has an edge.} Be6 {[%emt 0:19:29]} 9. f3 {[%emt 0:05:18]} Qa5 {[%emt 0:01:32]} 10. Kb1 {[%emt 0:03:09]} Rc8 {[%emt 0:15:59]} 11. Nge2 {[%emt 0:03:47]} O-O {[%emt 0:01:35]} 12. g4 {[%emt 0:02:37]} b5 {[%emt 0:06:23] [#]} 13. h4 $146 {[%emt 0:09:59]} ({Predecessor:} 13. Nf4 b4 14. Nce2 Rfd8 15. Nxe6 fxe6 16. Nf4 Kf7 17. h4 Ne5 18. Qe2 Rc6 19. Bh3 {0-1 (50) Gutenev,A (2469)-Gaydym,A (2139) Sochi 2019}) 13... h5 {[%emt 0:03:15]} (13... Ne5 $11 14. Nd5 Qxd2 15. Nxe7+ Kh8 16. Rxd2 Nxf3) 14. g5 {[%emt 0:09:52]} (14. Nf4 $1 $16) 14... Nd7 {[%emt 0:05:15]} 15. Nd5 {[%emt 0:05:00]} b4 {[%emt 0:06:28]} 16. c4 {[%emt 0:13:34]} bxc3 {[%emt 0:00:56]} 17. Bxc3 {[%emt 0:00:27]} (17. Nexc3 $14 Rb8 18. Na4 Qxd2 19. Rxd2) 17... Bxc3 $11 {[%emt 0:01:03]} 18. Qxc3 {[%emt 0:00:25]} (18. Nexc3 $11 {keeps the balance.} Rb8 19. Qb2) 18... Bxd5 $17 {[%emt 0:01:06]} 19. Rxd5 {[%emt 0:15:48]} (19. Qxa5 $17 Bxe4+ 20. fxe4 Nxa5 21. Bh3) 19... Qb6 $1 $19 {[%emt 0:01:24] Threatens to win with ...Nb4.} 20. Qd2 {[%emt 0:08:19]} Nb4 {[%emt 0:04:27]} 21. Rd4 {[%emt 0:00:15]} (21. Nc3 {only move.} Ne5 22. Be2) 21... Nc2 {[%emt 0:00:30] Hoping for ...Ne5.} 22. Rd3 {[%emt 0:02:21]} (22. Rd5 $142 Ne5 23. Nc3 Na3+ 24. Ka1 Nxf3 25. Qb2) 22... Na3+ {[%emt 0:01:49] Pair of Knights!} 23. Ka1 {[%emt 0:00:18]} Rc2 {[%emt 0:06:08]} 24. Qe3 {[%emt 0:02:09]} Qa5 {[%emt 0:00:22][%cal Oa3c4] ( -> ...Nc4!)} 25. Qd4 {[%emt 0:04:16] [#] Inhibits Nc4.} Rxe2 {[%emt 0:02:15]} 26. b4 {[%emt 0:02:01]} Nc2+ {[%emt 0:00:29]} 27. Kb1 {[%emt 0:00:07] [#]} Nxd4 (27... Nxb4 $142 $1 28. a3 Re1+ 29. Rd1 {[#]} Qxa3 $1 30. Bc4 Rb8 $1 31. Qb2 Nd3 32. Qxb8+ Nxb8 33. Rh2 Rxd1+ 34. Kc2 Rc1+ 35. Kd2 Qc3+ 36. Ke3 Ne5+ 37. Bd3 Qxd3+ 38. Kf4 Qxf3#) 28. bxa5 {[%emt 0:00:11]} Rb8+ {[%emt 0:00:20]} 29. Kc1 {[%emt 0:00:27]} Rc2+ {[%emt 0:00:06]} 30. Kd1 {[%emt 0:00:09]} Rb1# {[%emt 0:00:05] Weighted Error Value: White=1.24/Black=0.62} 0-1

[Event "EYTCC Girls U18 2022"]
[Site "Thessaloniki"]
[Date "2022.07.18"]
[Round "7.4"]
[White "Bashylina, Luisa"]
[Black "Kayis, Gulcan Sena"]
[Result "0-1"]
[ECO "A57"]
[WhiteElo "2041"]
[BlackElo "1682"]
[Annotator "TA"]
[PlyCount "74"]
[EventDate "2022.07.12"]
[EventType "team-tourn"]
[EventCountry "GRE"]
[SourceTitle "playchess.com"]
[Source "ChessBase"]
[SourceQuality "1"]
[WhiteTeam "Germany"]
[BlackTeam "Turkey"]
[WhiteTeamCountry "GER"]
[BlackTeamCountry "TUR"]
[TimeControl "40/5400+30:1800+30"]

{[%evp 23,74,62,114,93,88,89,118,113,118,102,97,91,114,103,82,36,39,42,35,16,16,0,0,0,0,0,0,0,6,0,0,0,0,0,0,0,0,0,0,0,0,0,0,0,0,0,0,0,0,0,0,-5057,-5057]} 1. d4 {[%emt 0:00:03]} Nf6 {[%emt 0:00:12]} 2. c4 {[%emt 0:00:04]} c5 {[%emt 0:00:09]} 3. d5 {[%emt 0:00:03]} b5 {[%emt 0:00:16]} 4. cxb5 {[%emt 0:00:13]} a6 {[%emt 0:02:26]} 5. e3 {[%emt 0:00:03]} g6 {[%emt 0:01:22]} 6. Nc3 {[%emt 0:00:06]} Bg7 {[%emt 0:01:28]} 7. a4 {[%emt 0:00:08]} O-O {[%emt 0:02:18]} 8. e4 {[%emt 0:01:03]} d6 {[%emt 0:01:20]} 9. Nf3 {[%emt 0:04:29]} axb5 {[%emt 0:03:43]} 10. Bxb5 {[%emt 0:00:05]} Ba6 {[%emt 0:00:59]} 11. Bd2 {[%emt 0:03:28]} Nbd7 {[%emt 0:08:21]} 12. O-O {[%emt 0:01:23]} Qb6 {[%emt 0:11:43]} (12... Bxb5 $14 13. axb5 Rxa1 14. Qxa1 Qc7) 13. Re1 {[%emt 0:04:23] A57: Benko/Volga Gambit.} Bxb5 {[%emt 0:06:22]} 14. Nxb5 {[%emt 0:00:52]} ({But not} 14. axb5 Rxa1 15. Qxa1 Rb8 $14) 14... Ng4 {[%emt 0:03:57] [#]} 15. Qc2 $146 {[%emt 0:09:28] White is better.} ({Predecessor:} 15. Bc3 Nge5 16. Nd2 Qb7 17. Qe2 g5 18. Nf1 f5 19. exf5 Rxf5 20. Ng3 Rf4 21. Ne4 h6 {1-0 (33) Knechtel,R (2175)-Nickmann,P (1955) Wuerzburg 1995}) 15... Rfc8 {[%emt 0:09:01]} 16. h3 {[%emt 0:09:26]} Nge5 {[%emt 0:03:30]} 17. Nxe5 {[%emt 0:03:15]} Nxe5 {[%emt 0:01:35]} 18. f4 {[%emt 0:04:28]} Nd7 {[%emt 0:00:28]} 19. Bc3 {[%emt 0:04:10]} ({White should try} 19. Kh2 $16) 19... c4+ $1 $14 {[%emt 0:05:32]} 20. Kh1 {[%emt 0:02:11]} Nc5 {[%emt 0:01:31]} 21. Bxg7 {[%emt 0:01:44]} (21. f5 {is more complex.} Nxa4 22. Nxd6 Qxd6 23. Rxa4 Qg3 24. Rxa8 Rxa8 25. Rc1) 21... Kxg7 {[%emt 0:00:30]} 22. e5 {[%emt 0:14:08]} Nxa4 {[%emt 0:10:12]} 23. Nxd6 {[%emt 0:02:10]} exd6 {[%emt 0:00:39]} 24. Rxa4 {[%emt 0:00:08]} Rxa4 {[%emt 0:02:05]} 25. Qxa4 $11 {[%emt 0:00:20][%mdl 4096] Endgame KQR-KQR} Qf2 {[%emt 0:02:21]} 26. Rd1 {[%emt 0:04:07] [#] Threatens to win with Qd7.} Qxb2 {[%emt 0:07:23]} 27. Qd7 {[%emt 0:14:27]} Rb8 {[%emt 0:05:17] And now ...c3 would win.} 28. e6 {[%emt 0:05:20]} Rb7 {[%emt 0:01:29]} 29. Qxd6 {[%emt 0:01:34][%cal Of4f5] f5! is the strong threat.} c3 $1 {[%emt 0:02:32][%cal Bc4c3,Bc3c2][%mdl 32] [#] aiming for ...c2.} 30. exf7 {[%emt 0:02:45]} Kxf7 {[%emt 0:02:37]} 31. Qe6+ {[%emt 0:00:13]} Kg7 {[%emt 0:00:15] Strongly threatening ...c2.} 32. Qe5+ {[%emt 0:00:53]} Kf7 {[%emt 0:02:42] Hoping for ...c2.} 33. f5 c2 $1 {[%emt 0:01:00][%csl LRd1,LRe5]} 34. fxg6+ {[%emt 0:06:19]} hxg6 {[%emt 0:00:54] The board is on fire.} 35. Rf1+ {[%emt 0:00:32]} Kg8 {[%emt 0:00:04]} 36. Qf4 {[%emt 0:03:39]} Qb1 {[%emt 0:00:54][%cal Ob1f1] ( -> ...Qxf1+!). Active counter play!} 37. Qf8+ {[%emt 0:00:45][%mdl 8192]} (37. Kh2 $11) 37... Kh7 {[%emt 0:00:03] Weighted Error Value: White=0.43/Black=0.04 (flawless)} 0-1

[Event "EYTCC Girls U18 2022"]
[Site "Thessaloniki"]
[Date "2022.07.18"]
[Round "7.5"]
[White "Ruzic, Pia Marie"]
[Black "Wikar, Martyna"]
[Result "1/2-1/2"]
[ECO "A84"]
[WhiteElo "2025"]
[BlackElo "2208"]
[Annotator "TA"]
[PlyCount "124"]
[EventDate "2022.07.12"]
[EventType "team-tourn"]
[EventCountry "GRE"]
[SourceTitle "playchess.com"]
[Source "ChessBase"]
[SourceQuality "1"]
[WhiteTeam "Slovenia"]
[BlackTeam "Poland"]
[WhiteTeamCountry "SLO"]
[BlackTeamCountry "POL"]
[TimeControl "40/5400+30:1800+30"]

{[%evp 13,124,29,46,30,44,-10,3,4,48,26,35,27,60,52,64,61,108,33,73,87,84,81,82,52,45,13,13,18,25,8,8,5,17,0,0,0,0,0,6,0,8,0,0,0,0,0,0,-8,0,-10,0,0,0,0,0,0,0,0,0,-3,-8,-39,0,0,0,-8,-8,-8,-8,-15,-15,-15,-15,-15,-15,-15,-15,-15,-15,-15,-15,-15,-15,-15,-15,-30,-30,-30,-30,-30,-8,-8,-8,-8,-8,-20,0,0,0,-45,-45,-45,0,-45,0,-45,-45,-45,0,0,0,-45,0]} 1. d4 {[%emt 0:00:03]} f5 {[%emt 0:00:45]} 2. c4 {[%emt 0:00:34]} Nf6 {[%emt 0:00:08][%cal Bg8f6,Bf6e4,Be4d2][%mdl 32]} 3. Nf3 {[%emt 0:01:29]} d6 {[%emt 0:00:28]} 4. b3 {[%emt 0:02:20]} g6 {[%emt 0:00:17]} 5. Bb2 {[%emt 0:00:19]} Bg7 {[%emt 0:00:08]} 6. g3 {[%emt 0:05:33]} O-O {[%emt 0:00:08]} 7. Bg2 {[%emt 0:00:12]} Ne4 {[%emt 0:03:20][%cal Oe7e5] is the new trend.} 8. Nfd2 {[%emt 0:07:58] A87: Dutch Defence: Leningrad System: 5 Nf3.} Nxd2 {[%emt 0:06:45]} 9. Nxd2 {[%emt 0:00:12] [#]} (9. Qxd2 $14 Nc6 10. f4) 9... Nc6 $146 {[%emt 0:01:53]} ({Predecessor:} 9... e5 10. Nf3 Nc6 11. O-O Qe7 12. d5 Nd8 13. Nd2 f4 14. Ne4 b6 15. a4 a5 {0-1 (116) Basel,M (1909)-Wehner,R (2054) Playchess.com INT 2020}) 10. Nf3 {[%emt 0:02:10] The position is equal.} Kh8 {[%emt 0:08:56]} 11. Qd2 {[%emt 0:06:23]} e5 {[%emt 0:05:59]} 12. dxe5 {[%emt 0:02:05]} Nxe5 {[%emt 0:02:03]} 13. O-O {[%emt 0:08:53]} Qe7 {[%emt 0:04:05]} 14. Rae1 {[%emt 0:07:22]} Rb8 {[%emt 0:05:49]} (14... f4 $14) 15. Ng5 {[%emt 0:06:35]} ({White should try} 15. Nd4 $16) 15... b5 {[%emt 0:09:10]} 16. cxb5 {[%emt 0:04:09]} Rxb5 {[%emt 0:00:13]} 17. f4 {[%emt 0:00:56]} h6 {[%emt 0:02:08]} 18. Nh3 {[%emt 0:00:56]} Ng4 {[%emt 0:02:39] [#] Threatens to win with ...Qe3+.} 19. e4 {[%emt 0:00:20] aiming for exf5.} Bxb2 {[%emt 0:02:32]} 20. Qxb2+ {[%emt 0:00:05]} Qg7 {[%emt 0:02:25]} 21. Qxg7+ {[%emt 0:07:42]} Kxg7 {[%emt 0:00:12]} 22. Rc1 {[%emt 0:01:00]} Rf7 {[%emt 0:01:15]} 23. Rfe1 {[%emt 0:01:16] Inhibits Ne3.} Ra5 {[%emt 0:04:43]} 24. a4 {[%emt 0:14:35]} fxe4 {[%emt 0:05:08]} 25. Bxe4 {[%emt 0:01:34]} Nf6 {[%emt 0:03:32]} 26. Bg2 {[%emt 0:00:49]} c5 {[%emt 0:01:16]} 27. b4 {[%emt 0:04:09]} Rxa4 {[%emt 0:00:12]} 28. bxc5 {[%emt 0:00:04]} dxc5 {[%emt 0:00:49]} 29. Rxc5 {[%emt 0:00:04]} Bf5 {[%emt 0:02:02]} 30. Nf2 {[%emt 0:00:20]} h5 {[%emt 0:05:53]} 31. Bf3 {[%emt 0:01:49]} Ra2 {[%emt 0:02:47]} 32. Re2 {[%emt 0:02:58]} Ra1+ {[%emt 0:01:21]} 33. Kg2 {[%emt 0:00:09]} Ng4 {[%emt 0:01:48]} 34. h3 {[%emt 0:01:05]} Nxf2 {[%emt 0:01:51]} 35. Rxf2 {[%emt 0:00:02]} a5 {[%emt 0:02:52]} 36. Rd2 {[%emt 0:02:19]} Ra3 {[%emt 0:05:02]} 37. Rb2 {[%emt 0:09:30]} Bxh3+ {[%emt 0:02:51]} 38. Kxh3 {[%emt 0:00:04] [#] Rf2 is the strong threat.} Rxf3 {[%emt 0:00:07]} 39. Rxa5 {[%emt 0:00:00]} R7xf4 $15 {[%emt 0:00:00][%mdl 4096] Endgame KRR-KRR} 40. Kg2 {[%emt 0:00:00]} Rf6 {[%emt 0:00:00]} 41. Rab5 {[%emt 0:03:19]} Kh6 {[%emt 0:03:48]} 42. Rb6 {[%emt 0:00:32]} Rxb6 {[%emt 0:00:28]} 43. Rxb6 $11 {[%emt 0:00:03] KR-KR} Rf5 {[%emt 0:00:26]} 44. Rb4 {[%emt 0:00:19]} Kg5 {[%emt 0:00:48]} 45. Ra4 {[%emt 0:00:07]} Re5 {[%emt 0:00:41]} 46. Rb4 {[%emt 0:00:22]} Kf5 {[%emt 0:00:29]} 47. Rf4+ {[%emt 0:01:47]} Ke6 {[%emt 0:00:51]} 48. Ra4 {[%emt 0:01:09]} g5 {[%emt 0:00:25]} 49. Kf3 {[%emt 0:01:10]} Rb5 {[%emt 0:01:49]} 50. Re4+ {[%emt 0:01:11]} Kf5 {[%emt 0:00:26]} 51. Ra4 {[%emt 0:00:06]} (51. g4+ {is a self mate.} hxg4+ 52. Rxg4 Rb3+ 53. Kf2 Kxg4 54. Ke2 Kf4 55. Kd2 g4 56. Kd1 g3 57. Kc2 Rf3 58. Kd1 g2 59. Kd2 g1=Q 60. Ke2 Qg2+ 61. Ke1 Rf1#) 51... Rd5 {[%emt 0:00:42]} 52. g4+ {[%emt 0:04:16]} hxg4+ {[%emt 0:00:37]} 53. Kg3 {[%emt 0:00:01]} Re5 {[%emt 0:02:08]} 54. Ra3 {[%emt 0:00:46]} Re4 {[%emt 0:02:21]} 55. Ra5+ {[%emt 0:00:05]} Kg6 {[%emt 0:00:18]} 56. Ra8 {[%emt 0:00:03]} Rf4 {[%emt 0:03:19]} 57. Rb8 {[%emt 0:00:41]} Kf5 {[%emt 0:02:28]} 58. Rb5+ {[%emt 0:00:07]} Kg6 {[%emt 0:00:43]} 59. Rb8 {[%emt 0:00:03]} Ra4 {[%emt 0:00:25]} 60. Rc8 {[%emt 0:00:09]} Kh5 {[%emt 0:01:31]} 61. Rh8+ $1 {[%emt 0:00:04]} Kg6 {[%emt 0:00:05]} 62. Rb8 {[%emt 0:00:02]} Kh5 {[%emt 0:00:09] Weighted Error Value: White=0.11 (very precise) /Black=0.10 (very precise)} 1/2-1/2

[Event "EYTCC Girls U18 2022"]
[Site "Thessaloniki"]
[Date "2022.07.18"]
[Round "7.6"]
[White "Marcinczyk, Monika"]
[Black "Mihelic, Vesna"]
[Result "1-0"]
[ECO "C47"]
[WhiteElo "1991"]
[BlackElo "2029"]
[Annotator "TA"]
[PlyCount "67"]
[EventDate "2022.07.12"]
[EventType "team-tourn"]
[EventCountry "GRE"]
[SourceTitle "playchess.com"]
[Source "ChessBase"]
[SourceQuality "1"]
[WhiteTeam "Poland"]
[BlackTeam "Slovenia"]
[WhiteTeamCountry "POL"]
[BlackTeamCountry "SLO"]
[TimeControl "40/5400+30:1800+30"]

{[%evp 17,67,0,7,0,-2,-6,14,13,7,10,16,28,22,0,8,0,16,0,27,30,35,0,113,41,21,0,0,0,0,-9,0,0,0,0,164,155,161,97,26,0,387,333,797,784,29958,29954,6283,6183,29984,29985,29984,29983]} 1. e4 {[%emt 0:00:03]} e5 {[%emt 0:00:06]} 2. Nf3 {[%emt 0:00:00]} Nc6 {[%emt 0:00:05]} 3. Nc3 Nf6 {[%emt 0:00:06]} 4. d4 {[%emt 0:00:32]} exd4 {[%emt 0:00:11]} 5. Nxd4 Bb4 {[%emt 0:00:09]} 6. Nxc6 {[%emt 0:00:48]} bxc6 {[%emt 0:00:06]} 7. Bd3 {[%emt 0:00:22]} d5 {[%emt 0:00:13]} 8. exd5 {[%emt 0:00:17]} cxd5 {[%emt 0:00:07]} 9. O-O {[%emt 0:00:29]} O-O {[%emt 0:00:07]} 10. Qf3 {[%emt 0:01:10] C47: Scotch Four Knights and Four Knights with 4 g3.} c6 {[%emt 0:02:45]} 11. h3 {[%emt 0:00:43]} Rb8 {[%emt 0:05:10][%cal Ba8b8,Bb8b4,Bb4h4][%mdl 32]} 12. Bf4 {[%emt 0:01:03] The position is equal.} Bd6 {[%emt 0:00:57]} 13. b3 {[%emt 0:00:36]} Rb4 {[%emt 0:06:21]} 14. Ne2 $1 {[%emt 0:02:25][%mdl 4] is more profitable than 14.Bxd6 at the moment.} Bxf4 {[%emt 0:03:20]} 15. a3 {[%emt 0:03:46]} Bh2+ {[%emt 0:21:37]} 16. Kxh2 {[%emt 0:00:30] [#]} Rh4 $146 {[%emt 0:01:58]} ({Predecessor:} 16... Qd6+ 17. Qg3 Qxg3+ 18. fxg3 Rb6 19. g4 Re8 20. Ng3 h6 21. Rae1 Kf8 22. Rxe8+ Nxe8 {0-1 (61) Mischuk,D (2317)-Akhmetov,A (2473) Sochi 2012}) 17. Kg1 {[%emt 0:16:11]} Re8 {[%emt 0:16:36]} (17... Ne4 $5 {[%cal Re4d2]}) 18. Rfe1 {[%emt 0:03:04]} Ne4 {[%emt 0:02:34]} 19. Ng3 {[%emt 0:04:00][%cal Rg3e4]} (19. Nd4 $5 {[%cal Rd4c6]}) 19... Qe7 {[%emt 0:16:42]} (19... f5 $11) 20. Qe3 {[%emt 0:19:30]} (20. Bxe4 $16 dxe4 21. Qc3) 20... f5 $14 {[%emt 0:03:53] Threatens to win with ...f4.} 21. Nxe4 {[%emt 0:03:35]} fxe4 {[%emt 0:02:03]} 22. Bf1 {[%emt 0:01:57]} Rf8 {[%emt 0:03:08]} 23. b4 {[%emt 0:12:31]} Qf6 {[%emt 0:03:24]} 24. Rad1 {[%emt 0:01:35]} Rf4 {[%emt 0:00:44][%cal Rf4f2]} 25. Rd2 {[%emt 0:03:12]} g5 $2 {[%emt 0:02:58]} (25... Qg6 $11 {and Black stays safe.} 26. c4 Rf3) 26. c4 $1 $18 {[%emt 0:01:46]} g4 {[%emt 0:01:18] [#]} 27. cxd5 {[%emt 0:01:34]} ({Better is} 27. hxg4 $1 $18 Bxg4 28. cxd5) 27... gxh3 $16 {[%emt 0:03:27]} (27... cxd5 28. hxg4 Be6 29. Qxa7 $14) 28. d6 {[%emt 0:04:03] Strongly threatening d7.} (28. Qxa7 hxg2 29. Bxg2 Rg4 30. Rxe4 {[#]} (30. Qe3 $2 Qg6 $19) 30... Rxg2+ $1 {[%mdl 512]} 31. Kxg2 Qf3+ 32. Kh2 Bh3 33. Qxh7+ Kxh7 $19) 28... Bg4 {[%emt 0:02:12][%mdl 8192]} (28... hxg2 $1 $11 29. Bxg2 Rg4) 29. d7 $18 {[%emt 0:05:09] Dancing on a razor blade.} hxg2 $2 {[%emt 0:01:52]} (29... Rd8 30. g3 (30. Qxa7 $2 hxg2 31. Bc4+ Kg7 $19) 30... h2+ 31. Kxh2 Rxd7) 30. Bc4+ {[%emt 0:03:29]} Be6 {[%emt 0:00:43]} 31. Bxe6+ {[%emt 0:01:32]} Qxe6 {[%emt 0:00:01]} 32. d8=Q {[%emt 0:00:30]} Qh6 {[%emt 0:00:43]} 33. Qg3+ {[%emt 0:01:38]} Kh8 {[%emt 0:00:05]} 34. Qd4+ {[%emt 0:01:47] Weighted Error Value: White=0.10 (very precise) /Black=1.08} 1-0